[Event "Late-Titled-Tuesday-Blitz-April-02-2024"]
[Site "Chess.com"]
[Date "2024.04.02"]
[Round "3"]
[White "RaugintaBulba"]
[Black "GlavkonVVS"]
[Result "1/2-1/2"]
[WhiteElo "2428"]
[BlackElo "2610"]
[TimeControl "180+1"]
[EndTime "14:27:55 PDT"]
[Termination "Game drawn by repetition"]

1. d4 {[%clk 0:03:00.9]} 1... Nf6 {[%clk 0:02:59.9]} 2. c4 {[%clk 0:03:00.2]}
2... e6 {[%clk 0:03:00]} 3. Nf3 {[%clk 0:03:00.5]} 3... c5 {[%clk 0:02:59.4]} 4.
d5 {[%clk 0:02:56.4]} 4... exd5 {[%clk 0:02:59.5]} 5. cxd5 {[%clk 0:02:57.3]}
5... d6 {[%clk 0:03:00.3]} 6. Nc3 {[%clk 0:02:57.9]} 6... g6 {[%clk 0:03:01]} 7.
Bf4 {[%clk 0:02:57.8]} 7... Bg7 {[%clk 0:03:01.4]} 8. Qa4+ {[%clk 0:02:58.1]}
8... Bd7 {[%clk 0:03:01.6]} 9. Qb3 {[%clk 0:02:58.7]} 9... Qc7 {[%clk
0:02:53.3]} 10. e4 {[%clk 0:02:55.2]} 10... O-O {[%clk 0:02:51.1]} 11. Be2
{[%clk 0:02:51.6]} 11... Re8 {[%clk 0:02:50.9]} 12. Nd2 {[%clk 0:02:42.9]} 12...
a6 {[%clk 0:02:44.9]} 13. Nc4 {[%clk 0:02:28.6]} 13... Nxe4 {[%clk 0:02:37.8]}
14. Nxe4 {[%clk 0:02:25.8]} 14... Rxe4 {[%clk 0:02:37]} 15. Bxd6 {[%clk
0:02:22.5]} 15... Qd8 {[%clk 0:02:17.8]} 16. Qxb7 {[%clk 0:02:18.2]} 16... Bb5
{[%clk 0:02:13.1]} 17. Qxa8 {[%clk 0:02:03.8]} 17... Bxc4 {[%clk 0:02:12.7]} 18.
O-O {[%clk 0:01:38.6]} 18... Qxd6 {[%clk 0:01:51.6]} 19. Bxc4 {[%clk 0:01:31.9]}
19... Rxc4 {[%clk 0:01:50.9]} 20. Rfe1 {[%clk 0:01:23.6]} 20... Be5 {[%clk
0:01:44.9]} 21. g3 {[%clk 0:01:17.8]} 21... Kg7 {[%clk 0:01:43.6]} 22. Re2
{[%clk 0:01:06.3]} 22... Rb4 {[%clk 0:01:32.6]} 23. Rae1 {[%clk 0:00:37]} 23...
Nd7 {[%clk 0:01:23.7]} 24. Qd8 {[%clk 0:00:26]} 24... Rb8 {[%clk 0:01:21.5]} 25.
Qh4 {[%clk 0:00:14.8]} 25... Bf6 {[%clk 0:01:19]} 26. Qc4 {[%clk 0:00:08.7]}
26... Rb4 {[%clk 0:01:17]} 27. Qc1 {[%clk 0:00:04.6]} 27... Rd4 {[%clk
0:01:14.8]} 28. b3 {[%clk 0:00:04.2]} 28... Rxd5 {[%clk 0:01:14.8]} 29. Qc2
{[%clk 0:00:03.8]} 29... Ne5 {[%clk 0:01:13.6]} 30. Qe4 {[%clk 0:00:04]} 30...
Nd3 {[%clk 0:01:12.7]} 31. Rd1 {[%clk 0:00:04.5]} 31... Nb4 {[%clk 0:01:09.2]}
32. Rxd5 {[%clk 0:00:04.3]} 32... Qxd5 {[%clk 0:01:07.5]} 33. Qxd5 {[%clk
0:00:04.8]} 33... Nxd5 {[%clk 0:01:07.8]} 34. Rc2 {[%clk 0:00:05.4]} 34... Bd4
{[%clk 0:01:08.1]} 35. Kf1 {[%clk 0:00:04]} 35... Kf6 {[%clk 0:01:08.4]} 36. Re2
{[%clk 0:00:04.4]} 36... Nc3 {[%clk 0:01:07.4]} 37. Rc2 {[%clk 0:00:05.1]} 37...
Ke5 {[%clk 0:01:06.9]} 38. a3 {[%clk 0:00:05.5]} 38... a5 {[%clk 0:01:06.7]} 39.
Ke1 {[%clk 0:00:04.4]} 39... Kd5 {[%clk 0:01:06.8]} 40. f3 {[%clk 0:00:04.7]}
40... Nb5 {[%clk 0:01:06.8]} 41. a4 {[%clk 0:00:04.6]} 41... Nd6 {[%clk
0:01:06.2]} 42. Kd2 {[%clk 0:00:03.6]} 42... Nf5 {[%clk 0:01:06.2]} 43. Kd3
{[%clk 0:00:03.3]} 43... Ne7 {[%clk 0:01:06.2]} 44. Re2 {[%clk 0:00:03.5]} 44...
Kd6 {[%clk 0:01:05]} 45. f4 {[%clk 0:00:03.4]} 45... Kd7 {[%clk 0:01:00.9]} 46.
Kc4 {[%clk 0:00:03.9]} 46... Nf5 {[%clk 0:00:58.7]} 47. Kb5 {[%clk 0:00:03.7]}
47... Bc3 {[%clk 0:00:57.7]} 48. Rf2 {[%clk 0:00:02.5]} 48... Bb4 {[%clk
0:00:57.5]} 49. Rf1 {[%clk 0:00:01.5]} 49... Nd4+ {[%clk 0:00:57.5]} 50. Kc4
{[%clk 0:00:02.3]} 50... Kd6 {[%clk 0:00:57.3]} 51. Rd1 {[%clk 0:00:02.8]} 51...
f5 {[%clk 0:00:56.4]} 52. Rd3 {[%clk 0:00:02.9]} 52... Kc6 {[%clk 0:00:55.5]}
53. Re3 {[%clk 0:00:03.3]} 53... Kd7 {[%clk 0:00:54.5]} 54. Re5 {[%clk 0:00:03]}
54... Nc6 {[%clk 0:00:53.6]} 55. Rd5+ {[%clk 0:00:03.2]} 55... Ke6 {[%clk
0:00:53.1]} 56. Rd1 {[%clk 0:00:02.4]} 56... Nd4 {[%clk 0:00:52.8]} 57. Rd3
{[%clk 0:00:02]} 57... h6 {[%clk 0:00:52.9]} 58. Re3+ {[%clk 0:00:02.4]} 58...
Kf6 {[%clk 0:00:52.6]} 59. Re8 {[%clk 0:00:02.7]} 59... g5 {[%clk 0:00:52.7]}
60. Rf8+ {[%clk 0:00:02.7]} 60... Kg7 {[%clk 0:00:52.1]} 61. Rd8 {[%clk
0:00:02.3]} 61... g4 {[%clk 0:00:52.2]} 62. Rd7+ {[%clk 0:00:02.4]} 62... Kg6
{[%clk 0:00:52.4]} 63. Rd6+ {[%clk 0:00:02.5]} 63... Kg7 {[%clk 0:00:51.5]} 64.
Rd7+ {[%clk 0:00:03]} 64... Kf6 {[%clk 0:00:51.8]} 65. Rd6+ {[%clk 0:00:03.5]}
65... Kg7 {[%clk 0:00:51.7]} 66. Rd7+ {[%clk 0:00:04]} 1/2-1/2

[Event "Late-Titled-Tuesday-Blitz-April-02-2024"]
[Site "Chess.com"]
[Date "2024.04.02"]
[Round "3"]
[White "hell3raiser"]
[Black "dodorox"]
[Result "0-1"]
[WhiteElo "2368"]
[BlackElo "2206"]
[TimeControl "180+1"]
[EndTime "14:27:57 PDT"]
[Termination "dodorox won on time"]

1. e4 {[%clk 0:02:54.8]} 1... e6 {[%clk 0:02:56.7]} 2. d4 {[%clk 0:02:54.3]}
2... d5 {[%clk 0:02:55]} 3. Nd2 {[%clk 0:02:54]} 3... dxe4 {[%clk 0:02:53.6]} 4.
Nxe4 {[%clk 0:02:53.8]} 4... Nf6 {[%clk 0:02:53]} 5. Nxf6+ {[%clk 0:02:47.8]}
5... Qxf6 {[%clk 0:02:53.9]} 6. Bd3 {[%clk 0:02:44.4]} 6... c5 {[%clk
0:02:45.3]} 7. dxc5 {[%clk 0:02:36.4]} 7... Bxc5 {[%clk 0:02:42.5]} 8. Nf3
{[%clk 0:02:35.6]} 8... Nc6 {[%clk 0:02:37.8]} 9. Bg5 {[%clk 0:02:33.8]} 9...
Qxb2 {[%clk 0:02:34.5]} 10. O-O {[%clk 0:02:29.5]} 10... h6 {[%clk 0:02:30.7]}
11. Rb1 {[%clk 0:02:25]} 11... Qxa2 {[%clk 0:02:24.4]} 12. Bd2 {[%clk
0:01:58.6]} 12... Qd5 {[%clk 0:02:19.3]} 13. Bc3 {[%clk 0:01:47.6]} 13... O-O
{[%clk 0:02:08]} 14. Qe2 {[%clk 0:01:23]} 14... Nd4 {[%clk 0:01:51]} 15. Bxd4
{[%clk 0:01:20]} 15... Bxd4 {[%clk 0:01:51.3]} 16. Be4 {[%clk 0:01:20]} 16...
Qc5 {[%clk 0:01:37.9]} 17. Rb5 {[%clk 0:01:13.9]} 17... Qc3 {[%clk 0:01:29]} 18.
Rb3 {[%clk 0:01:05.6]} 18... Qc5 {[%clk 0:01:28.9]} 19. Rb5 {[%clk 0:00:50.8]}
19... Qc3 {[%clk 0:01:28.7]} 20. Rd1 {[%clk 0:00:32.8]} 20... Bf6 {[%clk
0:01:25.6]} 21. Rb3 {[%clk 0:00:31.1]} 21... Qc5 {[%clk 0:01:21.8]} 22. g4
{[%clk 0:00:24.5]} 22... e5 {[%clk 0:01:18.4]} 23. h3 {[%clk 0:00:23.6]} 23...
Rb8 {[%clk 0:01:04.2]} 24. Bd3 {[%clk 0:00:19.2]} 24... Be6 {[%clk 0:00:55.1]}
25. Qe4 {[%clk 0:00:18.7]} 25... g6 {[%clk 0:00:52.8]} 26. Rb5 {[%clk
0:00:18.1]} 26... Qc7 {[%clk 0:00:49.3]} 27. Qe2 {[%clk 0:00:17]} 27... Rfe8
{[%clk 0:00:42.9]} 28. Rbb1 {[%clk 0:00:13.5]} 28... Bd5 {[%clk 0:00:38]} 29.
Be4 {[%clk 0:00:13.8]} 29... Bxe4 {[%clk 0:00:36.3]} 30. Qxe4 {[%clk 0:00:14.7]}
30... Qc6 {[%clk 0:00:26.7]} 31. Qe3 {[%clk 0:00:15]} 31... b5 {[%clk 0:00:17]}
32. h4 {[%clk 0:00:14.9]} 32... Kg7 {[%clk 0:00:13.6]} 33. g5 {[%clk 0:00:15]}
33... hxg5 {[%clk 0:00:11.2]} 34. hxg5 {[%clk 0:00:15.9]} 34... Bd8 {[%clk
0:00:10.9]} 35. Nxe5 {[%clk 0:00:16.1]} 35... Qe6 {[%clk 0:00:09.7]} 36. f4
{[%clk 0:00:16.3]} 36... Bb6 {[%clk 0:00:09.1]} 37. Kg2 {[%clk 0:00:13.6]} 37...
Bxe3 {[%clk 0:00:08.1]} 38. Rh1 {[%clk 0:00:13.5]} 38... Bxf4 {[%clk 0:00:07.6]}
39. Nf3 {[%clk 0:00:13.1]} 39... Qg4+ {[%clk 0:00:07.3]} 40. Kf2 {[%clk
0:00:13]} 40... Be3+ {[%clk 0:00:07.4]} 41. Ke2 {[%clk 0:00:12.8]} 41... Bb6+
{[%clk 0:00:07.6]} 42. Kd2 {[%clk 0:00:11.9]} 42... Qxf3 {[%clk 0:00:07.6]} 43.
Rbf1 {[%clk 0:00:11.5]} 43... Rbd8+ {[%clk 0:00:08.1]} 44. Kc1 {[%clk
0:00:11.3]} 44... Qa3+ {[%clk 0:00:07.7]} 45. Kb1 {[%clk 0:00:11.2]} 45... Re4
{[%clk 0:00:07.6]} 0-1

[Event "Late-Titled-Tuesday-Blitz-April-02-2024"]
[Site "Chess.com"]
[Date "2024.04.02"]
[Round "3"]
[White "NovakRatko"]
[Black "PhileKhoob"]
[Result "1-0"]
[WhiteElo "2438"]
[BlackElo "2267"]
[TimeControl "180+1"]
[EndTime "14:27:58 PDT"]
[Termination "NovakRatko won on time"]

1. d4 {[%clk 0:01:54.8]} 1... d5 {[%clk 0:02:59.5]} 2. c4 {[%clk 0:01:53.9]}
2... c6 {[%clk 0:02:58.7]} 3. cxd5 {[%clk 0:01:54]} 3... cxd5 {[%clk 0:02:59.6]}
4. Nc3 {[%clk 0:01:54.8]} 4... Nf6 {[%clk 0:02:58.2]} 5. f3 {[%clk 0:01:54.9]}
5... Bf5 {[%clk 0:02:49.4]} 6. Bg5 {[%clk 0:01:54.4]} 6... Nc6 {[%clk
0:02:45.7]} 7. e4 {[%clk 0:01:53.7]} 7... dxe4 {[%clk 0:02:43.9]} 8. Bxf6 {[%clk
0:01:53]} 8... gxf6 {[%clk 0:02:43.2]} 9. fxe4 {[%clk 0:01:53.2]} 9... Bd7
{[%clk 0:02:39.1]} 10. Nf3 {[%clk 0:01:52.4]} 10... Bh6 {[%clk 0:02:36.5]} 11.
Bc4 {[%clk 0:01:45.1]} 11... O-O {[%clk 0:02:33]} 12. O-O {[%clk 0:01:43.5]}
12... Kh8 {[%clk 0:02:32.5]} 13. Qe2 {[%clk 0:01:35.1]} 13... Rc8 {[%clk
0:02:19.6]} 14. Rad1 {[%clk 0:01:31.5]} 14... e6 {[%clk 0:02:05.7]} 15. Kh1
{[%clk 0:01:24.7]} 15... Rg8 {[%clk 0:02:05.2]} 16. Nb5 {[%clk 0:01:18]} 16...
Qe7 {[%clk 0:02:01]} 17. e5 {[%clk 0:01:09.6]} 17... f5 {[%clk 0:01:43.2]} 18.
Nd6 {[%clk 0:01:08.3]} 18... Rc7 {[%clk 0:01:43.3]} 19. d5 {[%clk 0:01:01.6]}
19... Nd8 {[%clk 0:01:37.9]} 20. b4 {[%clk 0:00:41.1]} 20... a6 {[%clk 0:01:14]}
21. Bb3 {[%clk 0:00:35.6]} 21... Bf8 {[%clk 0:01:03]} 22. a4 {[%clk 0:00:34.6]}
22... exd5 {[%clk 0:00:59.4]} 23. Bxd5 {[%clk 0:00:32.7]} 23... Ne6 {[%clk
0:00:48.4]} 24. Nxf5 {[%clk 0:00:26]} 24... Qxb4 {[%clk 0:00:48.2]} 25. Nd6
{[%clk 0:00:18.9]} 25... Rg7 {[%clk 0:00:22.3]} 26. Nh4 {[%clk 0:00:15]} 26...
Qxh4 {[%clk 0:00:19.4]} 27. Nxf7+ {[%clk 0:00:13]} 27... Kg8 {[%clk 0:00:19.6]}
28. g3 {[%clk 0:00:07.5]} 28... Qh3 {[%clk 0:00:14.8]} 29. Nd6 {[%clk
0:00:07.1]} 29... Qh6 {[%clk 0:00:11.2]} 30. Nf5 {[%clk 0:00:07.1]} 30... Qg5
{[%clk 0:00:10.2]} 31. Nxg7 {[%clk 0:00:06.1]} 31... Qxg7 {[%clk 0:00:10.7]} 32.
Ba2 {[%clk 0:00:05]} 32... Kh8 {[%clk 0:00:07.3]} 33. Rxd7 {[%clk 0:00:02.4]}
33... Qxd7 {[%clk 0:00:03.8]} 34. Bxe6 {[%clk 0:00:02.7]} 34... Qxe6 {[%clk
0:00:02.4]} 35. Rxf8+ {[%clk 0:00:03.3]} 35... Kg7 {[%clk 0:00:03]} 36. Rf6
{[%clk 0:00:03.8]} 36... Qd5+ {[%clk 0:00:02.1]} 37. Kg1 {[%clk 0:00:03.1]}
37... Rc1+ {[%clk 0:00:02]} 38. Kf2 {[%clk 0:00:03.4]} 38... Qd4+ {[%clk
0:00:02.5]} 39. Kg2 {[%clk 0:00:03.5]} 39... Qd5+ {[%clk 0:00:01.9]} 40. Kh3
{[%clk 0:00:03.8]} 40... Qd6 {[%clk 0:00:01.3]} 41. Qg4+ {[%clk 0:00:02.9]} 1-0

[Event "Late-Titled-Tuesday-Blitz-April-02-2024"]
[Site "Chess.com"]
[Date "2024.04.02"]
[Round "3"]
[White "Cambek64"]
[Black "chenxiaoyuer"]
[Result "1-0"]
[WhiteElo "2517"]
[BlackElo "2736"]
[TimeControl "180+1"]
[EndTime "14:28:00 PDT"]
[Termination "Cambek64 won by checkmate"]

1. Nc3 {[%clk 0:02:57.9]} 1... d5 {[%clk 0:02:50.2]} 2. e4 {[%clk 0:02:56.7]}
2... d4 {[%clk 0:02:50.2]} 3. Nce2 {[%clk 0:02:56.4]} 3... c5 {[%clk 0:02:51.1]}
4. Ng3 {[%clk 0:02:56]} 4... Nc6 {[%clk 0:02:52]} 5. f4 {[%clk 0:02:55]} 5... g6
{[%clk 0:02:52.7]} 6. Nf3 {[%clk 0:02:55.1]} 6... Bg7 {[%clk 0:02:53.6]} 7. Bc4
{[%clk 0:02:52.2]} 7... Na5 {[%clk 0:02:51.2]} 8. Bb5+ {[%clk 0:02:48.8]} 8...
Bd7 {[%clk 0:02:51.2]} 9. Bxd7+ {[%clk 0:02:49.4]} 9... Qxd7 {[%clk 0:02:52.1]}
10. d3 {[%clk 0:02:49.3]} 10... O-O-O {[%clk 0:02:51.1]} 11. O-O {[%clk
0:02:49.7]} 11... h5 {[%clk 0:02:50.5]} 12. Bd2 {[%clk 0:02:39]} 12... Nc6
{[%clk 0:02:49.5]} 13. Ne2 {[%clk 0:02:36.6]} 13... e5 {[%clk 0:02:43.5]} 14.
fxe5 {[%clk 0:02:35.3]} 14... Nxe5 {[%clk 0:02:43.3]} 15. Nxe5 {[%clk
0:02:35.2]} 15... Bxe5 {[%clk 0:02:44.2]} 16. Bf4 {[%clk 0:02:28.2]} 16... Bxf4
{[%clk 0:02:43.1]} 17. Nxf4 {[%clk 0:02:27.5]} 17... Ne7 {[%clk 0:02:34.1]} 18.
Qf3 {[%clk 0:02:27.2]} 18... g5 {[%clk 0:02:28.9]} 19. Nd5 {[%clk 0:02:22.7]}
19... Nxd5 {[%clk 0:02:23.5]} 20. exd5 {[%clk 0:02:23.1]} 20... Rhf8 {[%clk
0:02:24.4]} 21. Qxh5 {[%clk 0:02:13.5]} 21... Qxd5 {[%clk 0:02:24.4]} 22. Qg4+
{[%clk 0:02:13]} 22... f5 {[%clk 0:02:19.7]} 23. Qxg5 {[%clk 0:02:11.2]} 23...
Kb8 {[%clk 0:02:11.8]} 24. Rf2 {[%clk 0:02:10.5]} 24... c4 {[%clk 0:02:09.9]}
25. dxc4 {[%clk 0:02:05.1]} 25... Qxc4 {[%clk 0:02:10.8]} 26. b3 {[%clk
0:02:04.9]} 26... Qc5 {[%clk 0:02:08.1]} 27. Raf1 {[%clk 0:02:04]} 27... d3
{[%clk 0:02:07.9]} 28. cxd3 {[%clk 0:02:02.8]} 28... Rxd3 {[%clk 0:02:08.8]} 29.
h3 {[%clk 0:01:55]} 29... a6 {[%clk 0:01:58.9]} 30. Kh2 {[%clk 0:01:48.8]} 30...
Qc3 {[%clk 0:01:25.3]} 31. Rxf5 {[%clk 0:01:39.1]} 31... Rc8 {[%clk 0:01:25.2]}
32. Rf8 {[%clk 0:01:34.4]} 32... Rxf8 {[%clk 0:01:20.6]} 33. Rxf8+ {[%clk
0:01:32.4]} 33... Ka7 {[%clk 0:01:21.5]} 34. Rf2 {[%clk 0:01:24.2]} 34... Rd4
{[%clk 0:01:16.6]} 35. Qg3 {[%clk 0:01:17.8]} 35... Rd3 {[%clk 0:01:15.5]} 36.
Qf4 {[%clk 0:01:14.9]} 36... Rd4 {[%clk 0:01:13.2]} 37. Qf3 {[%clk 0:01:14.6]}
37... Rd3 {[%clk 0:01:11.4]} 38. Qg4 {[%clk 0:00:53.9]} 38... Rd4 {[%clk
0:01:08.2]} 39. Qg3 {[%clk 0:00:44.9]} 39... Qc1 {[%clk 0:01:03.5]} 40. Re2
{[%clk 0:00:40.5]} 40... Qc5 {[%clk 0:00:56.5]} 41. Qe3 {[%clk 0:00:39.9]} 41...
Ka8 {[%clk 0:00:52.6]} 42. Rd2 {[%clk 0:00:35.1]} 42... Qd6+ {[%clk 0:00:52.1]}
43. Qg3 {[%clk 0:00:32.5]} 43... Rxd2 {[%clk 0:00:50.5]} 44. Qxd6 {[%clk
0:00:32.5]} 44... Rxd6 {[%clk 0:00:51.4]} 45. g4 {[%clk 0:00:32.5]} 45... Rd2+
{[%clk 0:00:51.3]} 46. Kg3 {[%clk 0:00:32.8]} 46... Rxa2 {[%clk 0:00:52.2]} 47.
h4 {[%clk 0:00:32.8]} 47... Rb2 {[%clk 0:00:52.4]} 48. h5 {[%clk 0:00:32.8]}
48... Rxb3+ {[%clk 0:00:52.8]} 49. Kh4 {[%clk 0:00:32.5]} 49... a5 {[%clk
0:00:53.7]} 50. h6 {[%clk 0:00:32.3]} 50... a4 {[%clk 0:00:54.6]} 51. g5 {[%clk
0:00:31.2]} 51... Rb1 {[%clk 0:00:51.7]} 52. g6 {[%clk 0:00:30.9]} 52... a3
{[%clk 0:00:52]} 53. g7 {[%clk 0:00:30.8]} 53... Rg1 {[%clk 0:00:51.7]} 54. h7
{[%clk 0:00:30]} 54... a2 {[%clk 0:00:46.5]} 55. g8=Q+ {[%clk 0:00:28.5]} 55...
Ka7 {[%clk 0:00:42.2]} 56. Qxa2+ {[%clk 0:00:28.2]} 56... Kb6 {[%clk 0:00:41.4]}
57. Qb2+ {[%clk 0:00:27.6]} 57... Kc6 {[%clk 0:00:40.3]} 58. h8=Q {[%clk
0:00:27.3]} 58... Rh1+ {[%clk 0:00:40.1]} 59. Kg3 {[%clk 0:00:27]} 59... Rxh8
{[%clk 0:00:41]} 60. Qxh8 {[%clk 0:00:25.8]} 60... b5 {[%clk 0:00:41.9]} 61. Kf3
{[%clk 0:00:25.7]} 61... b4 {[%clk 0:00:42.8]} 62. Ke3 {[%clk 0:00:26.2]} 62...
b3 {[%clk 0:00:43.7]} 63. Kd3 {[%clk 0:00:26.6]} 63... b2 {[%clk 0:00:44.6]} 64.
Kc2 {[%clk 0:00:26.4]} 64... b1=Q+ {[%clk 0:00:45.5]} 65. Kxb1 {[%clk
0:00:26.5]} 65... Kb5 {[%clk 0:00:45.4]} 66. Qd4 {[%clk 0:00:26.7]} 66... Kc6
{[%clk 0:00:45.6]} 67. Qe5 {[%clk 0:00:26.2]} 67... Kb7 {[%clk 0:00:46.5]} 68.
Qd6 {[%clk 0:00:26.5]} 68... Ka8 {[%clk 0:00:47.4]} 69. Qd7 {[%clk 0:00:26.7]}
69... Kb8 {[%clk 0:00:47.8]} 70. Kb2 {[%clk 0:00:27.2]} 70... Ka8 {[%clk
0:00:48.7]} 71. Kb3 {[%clk 0:00:27.7]} 71... Kb8 {[%clk 0:00:49.6]} 72. Kb4
{[%clk 0:00:28.3]} 72... Ka8 {[%clk 0:00:50.5]} 73. Kb5 {[%clk 0:00:28.8]} 73...
Kb8 {[%clk 0:00:51.4]} 74. Kb6 {[%clk 0:00:29.3]} 74... Ka8 {[%clk 0:00:52.3]}
75. Qb7# {[%clk 0:00:29.4]} 1-0

[Event "Late-Titled-Tuesday-Blitz-April-02-2024"]
[Site "Chess.com"]
[Date "2024.04.02"]
[Round "3"]
[White "Viktoker"]
[Black "KnightDuta"]
[Result "0-1"]
[WhiteElo "2505"]
[BlackElo "2769"]
[TimeControl "180+1"]
[EndTime "14:28:01 PDT"]
[Termination "KnightDuta won by checkmate"]

1. d4 {[%clk 0:03:00.9]} 1... Nf6 {[%clk 0:02:59.8]} 2. Bf4 {[%clk 0:02:58]}
2... g6 {[%clk 0:02:58.9]} 3. Nc3 {[%clk 0:02:55.8]} 3... d5 {[%clk 0:02:59.1]}
4. e3 {[%clk 0:02:55.1]} 4... Bg7 {[%clk 0:02:58.9]} 5. h4 {[%clk 0:02:54.8]}
5... h5 {[%clk 0:02:49.7]} 6. Nf3 {[%clk 0:02:49.4]} 6... O-O {[%clk 0:02:50]}
7. Be2 {[%clk 0:02:47]} 7... c5 {[%clk 0:02:49.9]} 8. dxc5 {[%clk 0:02:47]} 8...
Nc6 {[%clk 0:02:45.8]} 9. O-O {[%clk 0:02:45.8]} 9... Re8 {[%clk 0:02:32.7]} 10.
Ne5 {[%clk 0:02:29.5]} 10... Bf5 {[%clk 0:01:44]} 11. Nb5 {[%clk 0:01:59.6]}
11... Ne4 {[%clk 0:00:56.2]} 12. Nxc6 {[%clk 0:01:57.9]} 12... bxc6 {[%clk
0:00:57.1]} 13. Nc7 {[%clk 0:01:58]} 13... Bxb2 {[%clk 0:00:57]} 14. Nxe8 {[%clk
0:01:15.9]} 14... Qxe8 {[%clk 0:00:56.6]} 15. c4 {[%clk 0:00:52.6]} 15... e5
{[%clk 0:00:51.3]} 16. Bh2 {[%clk 0:00:48.2]} 16... d4 {[%clk 0:00:29.9]} 17.
Bf3 {[%clk 0:00:20.6]} 17... dxe3 {[%clk 0:00:14.5]} 18. fxe3 {[%clk 0:00:18.1]}
18... Bxa1 {[%clk 0:00:12.9]} 19. Qxa1 {[%clk 0:00:17.9]} 19... Nd2 {[%clk
0:00:06.8]} 20. Rf2 {[%clk 0:00:16.7]} 20... Nxc4 {[%clk 0:00:06.8]} 21. Bxh5
{[%clk 0:00:14.1]} 21... Rb8 {[%clk 0:00:05.4]} 22. Bg3 {[%clk 0:00:13]} 22...
Rb1+ {[%clk 0:00:04.8]} 23. Qxb1 {[%clk 0:00:11.8]} 23... Bxb1 {[%clk
0:00:05.7]} 24. Be2 {[%clk 0:00:11.7]} 24... Nxe3 {[%clk 0:00:05.1]} 25. Bf3
{[%clk 0:00:11.2]} 25... Nf5 {[%clk 0:00:05.6]} 26. Bh2 {[%clk 0:00:10.7]} 26...
e4 {[%clk 0:00:06.3]} 27. Bg4 {[%clk 0:00:10.6]} 27... e3 {[%clk 0:00:06.7]} 28.
Re2 {[%clk 0:00:11]} 28... Bd3 {[%clk 0:00:07.3]} 29. Re1 {[%clk 0:00:11]} 29...
Qe4 {[%clk 0:00:07.9]} 30. Bf3 {[%clk 0:00:10.9]} 30... Qb4 {[%clk 0:00:08.5]}
31. Rd1 {[%clk 0:00:08.4]} 31... e2 {[%clk 0:00:09.1]} 32. Bxe2 {[%clk
0:00:08.6]} 32... Bxe2 {[%clk 0:00:09.7]} 33. Rd8+ {[%clk 0:00:08.2]} 33... Kg7
{[%clk 0:00:10.3]} 34. Be5+ {[%clk 0:00:09.1]} 34... f6 {[%clk 0:00:09.1]} 35.
Bd6 {[%clk 0:00:08.9]} 35... Qe1+ {[%clk 0:00:08.5]} 36. Kh2 {[%clk 0:00:09]}
36... Qxh4+ {[%clk 0:00:09.4]} 37. Kg1 {[%clk 0:00:09.6]} 37... Nxd6 {[%clk
0:00:07.7]} 38. cxd6 {[%clk 0:00:08.6]} 38... Qd4+ {[%clk 0:00:07.9]} 39. Kh2
{[%clk 0:00:09.5]} 39... Bg4 {[%clk 0:00:08.6]} 40. d7 {[%clk 0:00:09]} 40...
Bxd7 {[%clk 0:00:07.8]} 41. a4 {[%clk 0:00:09]} 41... g5 {[%clk 0:00:08.1]} 42.
a5 {[%clk 0:00:09.6]} 42... c5 {[%clk 0:00:08.3]} 43. a6 {[%clk 0:00:10.5]}
43... Qh4+ {[%clk 0:00:07.3]} 44. Kg1 {[%clk 0:00:10.7]} 44... Qd4+ {[%clk
0:00:08.2]} 45. Kh2 {[%clk 0:00:11]} 45... Bb5 {[%clk 0:00:08.9]} 46. Rb8 {[%clk
0:00:09.8]} 46... Bxa6 {[%clk 0:00:08.9]} 47. g4 {[%clk 0:00:07.6]} 47... Qf2+
{[%clk 0:00:08.7]} 48. Kh3 {[%clk 0:00:08.5]} 48... Bf1# {[%clk 0:00:08.9]} 0-1

[Event "Late-Titled-Tuesday-Blitz-April-02-2024"]
[Site "Chess.com"]
[Date "2024.04.02"]
[Round "3"]
[White "CarrotsandPizza"]
[Black "czasnaszachy"]
[Result "0-1"]
[WhiteElo "2602"]
[BlackElo "2444"]
[TimeControl "180+1"]
[EndTime "14:28:01 PDT"]
[Termination "czasnaszachy won by checkmate"]

1. e4 {[%clk 0:02:59.5]} 1... c5 {[%clk 0:02:59.5]} 2. Nf3 {[%clk 0:02:59.5]}
2... a6 {[%clk 0:02:59.8]} 3. d4 {[%clk 0:02:59.5]} 3... cxd4 {[%clk 0:03:00]}
4. Nxd4 {[%clk 0:03:00.1]} 4... Nf6 {[%clk 0:02:59.7]} 5. Nc3 {[%clk 0:03:00.5]}
5... e5 {[%clk 0:02:59.6]} 6. Nf3 {[%clk 0:03:01.1]} 6... Nc6 {[%clk 0:02:58.5]}
7. Bc4 {[%clk 0:02:59.4]} 7... Bb4 {[%clk 0:02:57.5]} 8. O-O {[%clk 0:02:58.1]}
8... Bxc3 {[%clk 0:02:56.4]} 9. bxc3 {[%clk 0:02:57.8]} 9... O-O {[%clk
0:02:52.2]} 10. Ba3 {[%clk 0:02:57.3]} 10... Re8 {[%clk 0:02:52.1]} 11. Ng5
{[%clk 0:02:45.5]} 11... d5 {[%clk 0:02:52.1]} 12. exd5 {[%clk 0:02:42.1]} 12...
Na5 {[%clk 0:02:51]} 13. Bb3 {[%clk 0:02:17.9]} 13... Nxb3 {[%clk 0:02:46.6]}
14. axb3 {[%clk 0:02:16.8]} 14... h6 {[%clk 0:02:30.1]} 15. Nf3 {[%clk
0:02:08.8]} 15... Qxd5 {[%clk 0:02:29.7]} 16. c4 {[%clk 0:02:03.1]} 16... Qxd1
{[%clk 0:02:22.2]} 17. Raxd1 {[%clk 0:02:02.8]} 17... Bf5 {[%clk 0:02:18.3]} 18.
Rd2 {[%clk 0:02:02.8]} 18... Rad8 {[%clk 0:02:17.3]} 19. Rfd1 {[%clk 0:01:57.8]}
19... Rxd2 {[%clk 0:01:47.8]} 20. Rxd2 {[%clk 0:01:57.5]} 20... Ne4 {[%clk
0:01:46.1]} 21. Re2 {[%clk 0:01:57.4]} 21... Nc3 {[%clk 0:01:36.1]} 22. Re3
{[%clk 0:01:54.6]} 22... Nb1 {[%clk 0:01:35.8]} 23. Bb2 {[%clk 0:01:28.7]} 23...
Bxc2 {[%clk 0:01:35.2]} 24. Ne1 {[%clk 0:00:53.7]} 24... Bg6 {[%clk 0:01:22.7]}
25. Bxe5 {[%clk 0:00:35]} 25... f6 {[%clk 0:00:55.7]} 26. Bd4 {[%clk 0:00:30.5]}
26... Nd2 {[%clk 0:00:51.2]} 27. Rxe8+ {[%clk 0:00:13.9]} 27... Bxe8 {[%clk
0:00:52.1]} 28. Be3 {[%clk 0:00:14.2]} 28... Nxb3 {[%clk 0:00:51.7]} 29. c5
{[%clk 0:00:14.9]} 29... Kf7 {[%clk 0:00:38.2]} 30. Nc2 {[%clk 0:00:14.5]} 30...
Ke6 {[%clk 0:00:35.3]} 31. Kf1 {[%clk 0:00:15]} 31... Kd5 {[%clk 0:00:33.7]} 32.
Na3 {[%clk 0:00:14.2]} 32... Nxc5 {[%clk 0:00:32.3]} 33. Ke2 {[%clk 0:00:14]}
33... a5 {[%clk 0:00:20.7]} 34. Kd2 {[%clk 0:00:13]} 34... b5 {[%clk 0:00:19.5]}
35. Nc2 {[%clk 0:00:13]} 35... b4 {[%clk 0:00:17.4]} 36. Ne1 {[%clk 0:00:11.9]}
36... Kc4 {[%clk 0:00:15.2]} 37. f3 {[%clk 0:00:12.2]} 37... b3 {[%clk 0:00:15]}
38. Bxc5 {[%clk 0:00:11.3]} 38... Kxc5 {[%clk 0:00:15.1]} 39. Kc3 {[%clk
0:00:11.7]} 39... a4 {[%clk 0:00:14.5]} 40. Nd3+ {[%clk 0:00:09.8]} 40... Kb5
{[%clk 0:00:14.4]} 41. Kb2 {[%clk 0:00:08]} 41... Kc4 {[%clk 0:00:11.6]} 42. Nf4
{[%clk 0:00:08.4]} 42... Bf7 {[%clk 0:00:09.4]} 43. h4 {[%clk 0:00:07.1]} 43...
g5 {[%clk 0:00:09.4]} 44. hxg5 {[%clk 0:00:07.1]} 44... hxg5 {[%clk 0:00:10.3]}
45. Ne2 {[%clk 0:00:07.3]} 45... Kb4 {[%clk 0:00:10]} 46. Nd4 {[%clk 0:00:06.7]}
46... a3+ {[%clk 0:00:10.9]} 47. Kc1 {[%clk 0:00:07.2]} 47... b2+ {[%clk
0:00:10.8]} 48. Kc2 {[%clk 0:00:08.1]} 48... Bg6+ {[%clk 0:00:10.4]} 49. Kd2
{[%clk 0:00:08.9]} 49... b1=Q {[%clk 0:00:10.5]} 50. Ke3 {[%clk 0:00:09.8]}
50... Qd3+ {[%clk 0:00:10.5]} 51. Kf2 {[%clk 0:00:10.3]} 51... Qxd4+ {[%clk
0:00:11.4]} 52. Kg3 {[%clk 0:00:11.2]} 52... a2 {[%clk 0:00:11.7]} 53. Kh2
{[%clk 0:00:11.2]} 53... a1=Q {[%clk 0:00:12.5]} 54. Kh3 {[%clk 0:00:11.5]}
54... Qh1+ {[%clk 0:00:12.1]} 55. Kg3 {[%clk 0:00:12.4]} 55... Qdh4# {[%clk
0:00:11.1]} 0-1